bitfinex/quotes_SOLUSD_20250308
["timestamp","ask_amount","ask_price","bid_price","bid_amount"]
[1741408733855,0.03,140.87,140.83,20.70426072]
[1741408734045,0.03,140.87,140.84,20.70426072]
[1741408734770,0.03,140.87,140.85,20.70426072]
[1741408736474,0.03,140.87,140.85,27.80376072]
[1741408738071,0.03,140.87,140.83,25.75034886]
[1741408738378,0.03,140.87,140.83,46.45460958]
[1741408738555,0.03,140.87,140.82,162.40518622]
[1741408739578,0.03,140.87,140.83,20.70426072]
[1741408739758,0.03,140.87,140.82,134.5998255]
[1741408739960,20.73426072,140.87,140.81,14.9741]
[1741408740267,20.70426072,140.85,140.81,6.34]
[1741408740465,20.70426072,140.84,140.81,6.34]
[1741408740665,20.70426072,140.85,140.79,20.70426072]
[1741408741058,20.70426072,140.86,140.8,20.70426072]
[1741408741876,20.73426072,140.87,140.81,20.70426072]
[1741408742079,0.03,140.87,140.81,20.70426072]
[1741408742253,0.03,140.87,140.83,7.1007]
[1741408742449,0.03,140.87,140.83,27.80496072]
[1741408742655,0.03,140.85,140.83,7.1007]
[1741408743355,0.03,140.85,140.82,7.1011]
[1741408744395,0.03,140.85,140.82,27.80536072]
[1741408744578,0.03,140.85,140.83,20.70426072]
[1741408744896,0.03,140.85,140.84,20.70426072]
[1741408746184,0.03,140.85,140.84,27.80446072]
[1741408750392,0.03,140.85,140.84,162.40428622]
[1741408751701,0.03,140.85,140.84,141.7000255]
[1741408752287,0.03,140.85,140.84,134.5998255]
[1741408752510,0.03,140.85,140.83,7.1006]
[1741408752691,0.03,140.85,140.82,7.1011]
[1741408754589,0.03,140.85,140.82,27.80536072]
[1741408754989,0.03,140.85,140.79,152.3557255]
[1741408755224,0.03,140.85,140.8,7.1017]
[1741408755225,20.73426072,140.85,140.8,7.1017]
[1741408755379,20.70426072,140.84,140.8,7.1017]
[1741408755713,0.03,140.85,140.78,0.033]
[1741408755714,20.70426072,140.82,140.78,7.1361]
[1741408755927,20.70426072,140.82,140.78,0.033]
[1741408756479,20.70426072,140.81,140.78,0.033]
[1741408757292,20.70426072,140.83,140.78,0.033]
[1741408757493,20.70426072,140.84,140.78,0.033]
[1741408758829,20.70426072,140.83,140.78,7.1362]
[1741408759914,20.70426072,140.84,140.78,7.1362]
[1741408760301,20.73426072,140.85,140.79,20.70426072]
[1741408761435,20.73426072,140.85,140.78,24.8944]
[1741408761636,20.73426072,140.85,140.79,20.70426072]
[1741408762144,0.03,140.85,140.81,27.80596072]
[1741408762439,0.03,140.85,140.82,20.70426072]
[1741408763146,0.03,140.85,140.84,20.70426072]
[1741408764304,0.03,140.85,140.84,27.80446072]
[1741408769653,0.03,140.85,140.84,162.40446072]
[1741408769859,0.03,140.87,140.84,198.80470958]
[1741408770047,0.0001,140.87,140.86,47.46990958]
[1741408770252,0.0001,140.87,140.86,182.06990958]
[1741408772344,0.0001,140.87,140.86,189.16910958]
[1741408779477,0.0001,140.87,140.86,189.20210958]
[1741408780878,0.0001,140.89,140.88,20.70426072]
[1741408781174,0.0001,140.89,140.88,173.95390958]
[1741408781847,0.0001,140.89,140.88,181.05210958]
[1741408782079,0.0001,140.92,140.89,18.64964886]
[1741408782316,0.0001,140.93,140.91,60.0581703]
[1741408782474,0.0001,140.93,140.92,39.35390958]
[1741408782671,0.0001,140.93,140.92,175.61840958]
[1741408784398,0.0001,140.93,140.92,182.71460958]
[1741408784692,0.0001,140.93,140.92,188.52849085]
[1741408785101,0.0001,140.93,140.92,27.80046072]
[1741408785677,0.0001,140.93,140.92,46.45010958]
[1741408790612,0.0001,140.93,140.92,181.05010958]
[1741408795617,2.0691109,140.96,140.93,134.5999]
[1741408795796,2.0691109,140.96,140.95,20.70426072]
[1741408795984,2.0691109,140.96,140.95,27.02426072]
[1741408796900,2.0691109,140.96,140.95,34.11896072]
[1741408797731,1.09e-05,140.96,140.95,52.76860958]
[1741408798104,1.09e-05,140.96,140.95,187.36850958]
[1741408802413,0.03,141.0,140.99,39.35390958]
[1741408802617,0.03,141.08,141.0,18.64964886]
[1741408802931,13.7403,141.06,140.99,134.5998891]
[1741408803106,20.70426072,141.01,140.96,7.0942]
[1741408803298,13.22685249,141.01,140.96,141.6940891]
[1741408803503,1.5595,141.02,140.96,154.92094159]
[1741408803950,13.22685249,141.01,140.96,141.6940891]
[1741408804425,1.5122752,141.01,140.96,154.92094159]
[1741408805330,1.5122752,141.01,140.96,162.35847098]
[1741408805539,22.17665708,141.01,140.96,141.6940891]
[1741408805922,26.80748188,141.0,140.95,141.6944891]
[1741408806120,20.66438188,140.99,140.94,148.0349891]
[1741408806320,6.1431,141.0,140.93,141.6953891]
[1741408806321,20.66438188,140.97,140.93,141.6953891]
[1741408806636,1.5054,140.96,140.92,27.76048188]
[1741408806844,1.5054,140.99,140.93,20.66438188]
[1741408807025,20.66438188,140.98,140.92,27.76048188]
[1741408807224,20.66438188,140.97,140.91,27.79398188]
[1741408808114,20.66438188,140.97,140.91,7.1296]
[1741408808314,20.66438188,140.97,140.91,27.79398188]
[1741408810250,20.66438188,140.98,140.93,7.0957]
[1741408811221,20.66438188,140.98,140.92,7.0962]
[1741408811518,27.75758188,140.98,140.92,7.0962]
[1741408811711,20.66438188,140.98,140.92,7.0962]
[1741408811910,20.66438188,140.98,140.92,27.76058188]
[1741408813053,20.66438188,140.98,140.92,7.0962]
[1741408814433,20.66438188,140.98,140.92,27.76058188]
[1741408814640,22.16978188,140.99,140.93,20.66438188]
[1741408815738,20.66438188,140.98,140.92,27.76058188]
[1741408816631,20.66438188,140.97,140.92,7.0962]
[1741408817441,20.66438188,140.97,140.91,27.79388188]
[1741408817752,7.0933,140.98,140.91,27.79388188]
[1741408817950,20.66438188,140.98,140.92,20.66438188]
[1741408818337,20.66438188,140.97,140.91,27.79388188]
[1741408819058,8.5982,140.99,140.91,0.033]
[1741408819235,20.66438188,140.95,140.91,0.033]
[1741408819434,22.17665708,140.96,140.91,0.033]
[1741408822863,20.66438188,140.95,140.91,0.033]
[1741408823163,8.6065752,140.96,140.91,0.033]
[1741408823164,22.17665708,140.96,140.91,0.033]
[1741408823945,20.66438188,140.95,140.91,0.033]
[1741408826356,27.75908188,140.95,140.91,0.033]
[1741408827270,20.33322927,140.95,140.91,0.033]
[1741408827567,13.23852927,140.94,140.91,0.033]
[1741408829165,7.0947,140.95,140.91,0.033]
[1741408829338,13.23852927,140.94,140.91,0.033]
[1741408829539,13.23852927,140.95,140.91,0.033]
[1741408829949,13.23852927,140.94,140.91,0.033]
[1741408831563,13.23852927,140.95,140.91,0.033]
[1741408834269,1.5122752,140.96,140.91,0.033]
[1741408834472,14.75080447,140.96,140.91,0.033]
[1741408834846,13.23852927,140.95,140.91,0.033]
[1741408835864,14.75080447,140.96,140.91,0.033]
[1741408836059,1.5122752,140.96,140.93,13.23852927]
[1741408836446,1.5122752,140.96,140.91,0.033]
[1741408836771,1.5122752,140.96,140.91,13.27152927]
[1741408838873,1.5122752,140.96,140.92,7.0962]
[1741408842876,14.75080447,140.96,140.91,7.1297]
[1741408843066,13.23852927,140.95,140.91,0.033]
[1741408843555,13.23852927,140.94,140.91,0.033]
[1741408845469,13.23852927,140.95,140.91,0.033]
[1741408845775,14.75080447,140.96,140.91,0.033]
[1741408846983,14.75080447,140.96,140.91,7.1297]
[1741408848079,1.5122752,140.96,140.91,7.1297]
[1741408849484,1.5122752,140.96,140.91,13.27152927]
[1741408850502,1.5122752,140.96,140.92,7.0962]
[1741408851301,1.5122752,140.96,140.92,20.33472927]
[1741408854193,14.75080447,140.96,140.92,7.0962]
[1741408854997,1.5122752,140.96,140.92,7.0962]
[1741408855996,1.5122752,140.96,140.92,13.23852927]
[1741408857377,1.5122752,140.96,140.93,7.0957]
[1741408860805,1.5122752,140.96,140.92,7.0961]
[1741408862804,1.5122752,140.96,140.92,20.33462927]
[1741408864708,1.5122752,140.96,140.94,13.23852927]
[1741408865010,1.5122752,140.96,140.95,13.23852927]
[1741408865186,1.5122752,140.96,140.93,149.47222927]
[1741408865882,1.5122752,140.96,140.93,136.2337]
[1741408867722,1.5122752,140.96,140.93,143.329]
[1741408870602,1.5122752,140.96,140.93,8.729]
[1741408871807,1.5122752,140.96,140.93,21.96752927]
[1741408873826,1.5122752,140.96,140.93,39.70682927]
[1741408876527,1.5122752,140.96,140.93,174.30682927]
[1741408876733,1.5122752,140.96,140.93,141.6953]
[1741408880034,1.5122752,140.96,140.93,134.6]
[1741408880330,21.84520447,140.96,140.93,134.6]
[1741408881422,14.75080447,140.96,140.93,134.6]
[1741408882535,14.75080447,140.96,140.91,7.1296]
[1741408883434,20.33352927,140.95,140.91,0.033]
[1741408883619,13.23852927,140.93,140.91,0.033]
[1741408885324,20.33432927,140.93,140.91,0.033]
[1741408885936,13.23852927,140.93,140.91,0.033]
[1741408887466,13.23852927,140.94,140.91,0.033]
[1741408887744,20.33332927,140.95,140.91,0.033]
[1741408888432,13.23852927,140.95,140.91,0.033]
[1741408889349,13.23852927,140.94,140.91,0.033]
[1741408890551,13.23852927,140.95,140.91,0.033]
[1741408893546,8.6065752,140.96,140.91,0.033]
[1741408893547,13.23852927,140.94,140.91,0.033]
[1741408894453,8.6065752,140.96,140.91,0.033]
[1741408894454,13.23852927,140.95,140.91,0.033]
[1741408895155,1.5122752,140.96,140.91,0.033]
[1741408895336,1.5122752,140.96,140.91,13.27152927]
[1741408896058,1.5122752,140.96,140.92,13.23852927]
[1741408896235,1.5122752,140.96,140.94,13.23852927]
[1741408896431,1.5122752,140.96,140.95,7.0947]
[1741408896852,1.5122752,140.96,140.93,13.23852927]
[1741408897154,1.5122752,140.96,140.93,7.0957]
[1741408897666,1.5122752,140.96,140.93,20.33422927]
[1741408897839,1.5122752,140.96,140.94,13.23852927]
[1741408898522,1.5122752,140.96,140.95,7.0947]
[1741408900032,1.5122752,140.96,140.94,7.0952]
[1741408904646,1.5122752,140.96,140.93,141.6955]
[1741408905546,1.5122752,140.96,140.93,154.93402927]
[1741408906165,1.5122752,140.96,140.93,141.6955]
[1741408906356,14.75080447,140.96,140.91,7.1295]
[1741408906736,1.5122752,140.96,140.91,20.36802927]
[1741408908359,13.23852927,140.95,140.91,0.033]
[1741408909149,21.84510447,140.96,140.91,0.033]
[1741408909445,1.5122752,140.96,140.91,0.033]
[1741408909643,1.5122752,140.96,140.91,13.27152927]
[1741408910552,1.5122752,140.96,140.91,0.033]
[1741408910761,13.23852927,140.95,140.91,0.033]
[1741408911839,13.23852927,140.94,140.91,0.033]
[1741408912239,13.23852927,140.92,140.91,0.033]
[1741408912463,38.54957813,140.92,140.91,0.033]
[1741408912661,45.64577813,140.92,140.91,0.033]
[1741408913067,104.28083336,140.92,140.91,0.033]
[1741408914068,98.59989521,140.92,140.91,0.033]
[1741408914451,7.0972,140.9,140.86,0.033]
[1741408914651,13.23852927,140.87,140.86,0.033]
[1741408917251,31.88817813,140.87,140.86,0.033]
[1741408917453,38.98687813,140.87,140.86,0.033]
[1741408918252,13.23852927,140.87,140.86,0.033]
[1741408918862,38.98687813,140.87,140.86,0.033]
[1741408919868,31.88817813,140.87,140.86,0.033]
[1741408920051,97.374,140.88,140.86,0.033]
[1741408920255,13.23852927,140.87,140.86,0.033]
[1741408921144,89.3968,140.91,140.86,0.033]
[1741408921356,13.23852927,140.88,140.86,0.033]
[1741408921755,13.23852927,140.87,140.86,0.033]
[1741408922349,13.23852927,140.88,140.86,0.033]
[1741408922763,13.23852927,140.87,140.86,0.033]
[1741408923192,13.23852927,140.88,140.86,0.033]
[1741408923755,13.23852927,140.87,140.86,0.033]
[1741408925779,38.98687813,140.87,140.86,0.033]
[1741408926196,18.64964886,140.86,140.78,0.033]
[1741408926366,13.23852927,140.81,140.78,0.033]
[1741408926554,13.23852927,140.82,140.78,0.033]
[1741408927269,13.23852927,140.82,140.78,7.1362]
[1741408928287,13.23852927,140.82,140.78,0.033]
[1741408929896,13.23852927,140.81,140.78,0.033]
[1741408930302,20.34102927,140.8,140.78,0.033]
[1741408930597,13.23852927,140.79,140.78,0.033]
[1741408932600,20.34122927,140.79,140.78,0.033]
[1741408936185,38.99087813,140.79,140.78,0.033]
[1741408937305,20.34122927,140.79,140.78,0.033]
[1741408937493,13.23852927,140.79,140.78,0.033]
[1741408937912,6.3571,140.81,140.78,0.033]
[1741408938088,13.23852927,140.83,140.78,0.033]
[1741408938885,13.23852927,140.82,140.78,0.033]
[1741408939491,18.64964886,140.84,140.78,0.033]
[1741408939713,24.96964886,140.85,140.78,0.033]
[1741408939714,13.23852927,140.83,140.78,0.033]
[1741408940808,13.23852927,140.84,140.78,13.27152927]
[1741408941243,13.23852927,140.84,140.79,7.1027]
[1741408942231,13.23852927,140.85,140.79,20.34122927]
[1741408943230,13.23852927,140.84,140.79,7.1027]
[1741408943412,13.23852927,140.83,140.78,15.0803]
[1741408946247,13.23852927,140.81,140.78,0.033]
[1741408947045,13.23852927,140.82,140.78,0.033]
[1741408947352,13.23852927,140.84,140.78,13.27152927]
[1741408948077,82.3,140.86,140.79,13.23852927]
[1741408948282,82.3,140.86,140.81,13.23852927]
[1741408948578,13.26852927,140.87,140.81,13.23852927]
[1741408948776,0.03,140.87,140.82,13.23852927]
[1741408949885,0.03,140.87,140.83,7.1007]
[1741408954180,0.03,140.87,140.81,20.70662941]
[1741408954385,20.70662941,140.86,140.81,7.1017]
[1741408954558,20.70662941,140.85,140.8,149.5839]
[1741408955669,20.70662941,140.83,140.8,1.5596]
[1741408957586,20.70662941,140.84,140.8,1.5596]
[1741408957901,0.03,140.87,140.8,1.5596]
[1741408957902,20.70662941,140.83,140.8,1.5596]
[1741408958081,7.0992,140.86,140.8,1.5596]
[1741408958395,20.70662941,140.85,140.8,1.5596]
[1741408958571,20.70662941,140.85,140.8,8.6617]
[1741408958992,7.0992,140.86,140.8,1.5596]
[1741408958993,20.70662941,140.84,140.8,1.5596]
[1741408959296,20.70662941,140.83,140.78,0.033]
[1741408959467,20.70662941,140.83,140.78,7.1362]
[1741408959662,18.64964886,140.85,140.78,7.1362]
[1741408959996,20.70662941,140.85,140.78,27.84282941]
[1741408961799,27.80662941,140.85,140.78,27.84282941]
[1741408962003,20.70662941,140.85,140.79,20.70662941]
[1741408962374,27.80632941,140.85,140.79,20.70662941]
[1741408962569,27.80632941,140.85,140.78,27.84282941]
[1741408962792,20.70662941,140.84,140.78,27.84282941]
[1741408963579,27.80632941,140.85,140.78,27.84282941]
[1741408963778,27.80632941,140.85,140.79,27.80892941]
[1741408964808,27.80632941,140.85,140.78,20.73962941]
[1741408964975,27.80632941,140.85,140.78,27.84282941]
[1741408965176,20.70662941,140.84,140.78,27.84282941]
[1741408965507,20.70662941,140.84,140.78,7.1362]
[1741408965803,20.70662941,140.84,140.78,27.84282941]
[1741408966008,27.80712941,140.84,140.78,20.73962941]
[1741408966180,20.70662941,140.83,140.78,0.033]
[1741408966906,27.80712941,140.84,140.78,27.84282941]
[1741408967076,20.70662941,140.84,140.78,27.84282941]
[1741408967278,20.70662941,140.84,140.78,7.1362]
[1741408967677,20.70662941,140.84,140.78,0.033]
[1741408967896,20.70662941,140.81,140.78,0.033]
[1741408968083,20.70662941,140.79,140.78,0.033]
[1741408968812,27.80912941,140.8,140.78,0.033]
[1741408970432,20.70662941,140.79,140.78,0.033]
[1741408973321,13.26889842,140.79,140.78,0.033]
[1741408977431,1.6222,140.84,140.78,0.033]
[1741408977611,13.26889842,140.83,140.78,0.033]
[1741408977819,13.26889842,140.82,140.78,0.033]
[1741408978030,13.26889842,140.83,140.78,0.033]
[1741408978206,20.37009842,140.83,140.78,0.033]
[1741408979209,13.26889842,140.83,140.78,13.30189842]
[1741408979441,13.26889842,140.85,140.79,20.37159842]
[1741408979921,13.26889842,140.85,140.78,14.84499842]
[1741408980130,13.26889842,140.84,140.78,21.94799842]
[1741408980847,13.26889842,140.83,140.78,1.5761]
[1741408981149,13.26889842,140.82,140.78,1.5761]
[1741408981445,13.26889842,140.81,140.78,1.5761]
[1741408981743,20.37069842,140.81,140.78,1.5761]
[1741408982638,13.26889842,140.82,140.78,1.5761]
[1741408982831,88.62,140.86,140.78,14.84499842]
[1741408983336,0.03,140.87,140.81,20.71083763]
[1741408983519,20.71083763,140.86,140.8,20.71083763]
[1741408984031,20.71083763,140.84,140.78,163.98993763]
[1741408984236,20.71083763,140.84,140.78,29.38993763]
[1741408984703,25.77844886,140.87,140.78,29.38993763]
[1741408984952,20.71083763,140.85,140.79,20.71083763]
[1741408985121,20.71083763,140.86,140.8,20.71083763]
[1741408986924,27.81023763,140.86,140.8,27.81273763]
[1741408987129,20.71083763,140.85,140.8,27.81273763]
[1741408987326,20.71083763,140.85,140.8,7.1019]
[1741408987829,27.83953763,140.87,140.81,20.71083763]
[1741408988138,20.71083763,140.86,140.8,162.41273763]
[1741408989749,0.03,140.87,140.82,20.71083763]
[1741408989954,0.03,140.87,140.83,35.65433763]
[1741408990247,0.03,140.87,140.85,20.71083763]
[1741408990430,0.03,140.87,140.86,20.71083763]
[1741408990636,0.03,140.87,140.85,20.71083763]
[1741408991451,0.03,140.87,140.84,20.71083763]
[1741408991767,0.03,140.87,140.85,20.71083763]
[1741408991934,0.03,140.87,140.86,27.81003763]
[1741408992135,0.03,140.87,140.85,155.31083763]
[1741408992466,0.03,140.87,140.85,134.6]
[1741408995454,0.03,140.87,140.84,20.71083763]
[1741408996662,0.03,140.87,140.84,27.81103763]
[1741408998964,0.03,140.87,140.83,149.5433]
[1741408999258,0.03,140.87,140.84,20.71083763]
[1741409000151,20.74083763,140.87,140.83,1.542]
[1741409000360,20.74083763,140.87,140.8,134.6]
[1741409000361,20.71083763,140.85,140.8,1.542]
[1741409001950,20.71083763,140.85,140.8,8.6442]
[1741409002461,0.03,140.87,140.81,20.71083763]
[1741409002756,20.74083763,140.87,140.81,20.71083763]
[1741409003147,20.71083763,140.86,140.8,29.35503763]
[1741409004061,7.0997,140.85,140.8,29.35503763]
[1741409004362,7.0997,140.85,140.8,156.85283763]
[1741409004751,7.0997,140.85,140.8,136.142]
[1741409004959,20.71083763,140.85,140.8,136.142]
[1741409005146,20.71083763,140.84,140.8,134.6]
[1741409005353,20.71083763,140.84,140.78,27.84673763]
[1741409006670,20.71083763,140.85,140.78,27.84673763]
[1741409007766,20.71083763,140.85,140.8,0.033]
[1741409008265,27.81053763,140.85,140.8,0.033]
[1741409009350,20.71083763,140.85,140.8,0.033]
[1741409010081,27.81063763,140.85,140.8,0.033]
[1741409011346,13.25773521,140.85,140.8,0.033]
[1741409012567,20.35763521,140.85,140.8,0.033]
[1741409013755,13.25773521,140.84,140.8,0.033]
[1741409013958,20.35763521,140.85,140.8,0.033]
[1741409015874,13.25773521,140.82,140.8,0.033]
[1741409016178,13.25773521,140.81,140.8,0.033]
[1741409016850,13.25773521,140.82,140.8,0.033]
[1741409017971,13.25773521,140.81,140.8,0.033]
[1741409019170,13.25773521,140.82,140.8,0.033]
[1741409019666,13.25773521,140.83,140.8,0.033]
[1741409019861,20.35893521,140.83,140.8,0.033]
[1741409020972,20.35813521,140.84,140.8,0.033]
[1741409023257,20.35763521,140.85,140.8,0.033]
[1741409024253,13.25773521,140.84,140.8,0.033]
[1741409024452,13.25773521,140.83,140.8,0.033]
[1741409024671,13.25773521,140.82,140.8,0.033]
[1741409025270,13.25773521,140.83,140.8,0.033]
[1741409026364,20.35873521,140.83,140.8,0.033]
[1741409027287,13.25773521,140.84,140.8,0.033]
[1741409027483,13.25773521,140.85,140.8,0.033]
[1741409027782,13.25773521,140.84,140.8,0.033]
[1741409028081,13.25773521,140.85,140.8,0.033]
[1741409028682,7.1002,140.84,140.8,0.033]
[1741409029063,20.35793521,140.84,140.8,0.033]
[1741409030585,13.25773521,140.85,140.8,0.033]
[1741409030979,20.35693521,140.86,140.8,0.033]
[1741409031484,13.28773521,140.87,140.8,13.29073521]
[1741409031780,13.28773521,140.87,140.82,13.25773521]
[1741409031781,0.03,140.87,140.82,13.25773521]
[1741409032171,13.28773521,140.87,140.81,13.25773521]
[1741409032684,13.28773521,140.87,140.8,155.74473521]
[1741409032685,13.25773521,140.86,140.8,155.74473521]
[1741409032886,13.25773521,140.86,140.8,142.487]
[1741409033780,20.35743521,140.86,140.8,149.5892]
[1741409033999,20.35743521,140.86,140.8,162.84693521]
[1741409034196,0.03,140.87,140.8,162.84693521]
[1741409034197,13.28773521,140.87,140.8,162.84693521]
[1741409034390,13.25773521,140.85,140.8,142.487]
[1741409035967,7.1002,140.84,140.8,142.487]
[1741409036162,20.35793521,140.84,140.8,142.487]
[1741409036367,20.35793521,140.84,140.8,1.587]
[1741409038601,7.1002,140.84,140.8,1.587]
[1741409041781,13.25773521,140.85,140.8,8.6892]
[1741409041985,20.35743521,140.86,140.8,8.6892]
[1741409042390,20.35743521,140.86,140.8,21.94693521]
[1741409042594,20.35743521,140.86,140.8,8.6892]
[1741409043100,13.25773521,140.85,140.8,8.6892]
[1741409044204,20.35743521,140.85,140.8,8.6892]
[1741409044402,20.35743521,140.85,140.8,1.587]
[1741409046098,20.35743521,140.85,140.8,8.6892]
[1741409047204,7.0997,140.85,140.8,8.6892]
[1741409048101,13.25773521,140.85,140.8,8.6892]
[1741409048408,13.25773521,140.84,140.8,1.587]
[1741409051006,20.35773521,140.85,140.8,1.587]
[1741409051215,20.35773521,140.85,140.8,8.6891]
[1741409051390,7.1,140.85,140.8,8.6891]
[1741409052113,13.25773521,140.85,140.8,8.6891]
[1741409053102,13.25773521,140.84,140.8,1.587]
[1741409053612,13.25773521,140.85,140.8,1.587]
[1741409054320,7.1002,140.84,140.8,1.587]
[1741409056090,13.25773521,140.85,140.8,1.587]
[1741409056613,20.35743521,140.85,140.8,1.587]
[1741409056810,13.25773521,140.85,140.8,8.6892]
[1741409057191,7.0994,140.86,140.8,8.6892]
[1741409057686,0.03,140.87,140.8,8.6892]
[1741409059697,0.03,140.87,140.8,21.94693521]
[1741409060186,13.28773521,140.87,140.8,8.6892]
[1741409061596,7.0992,140.86,140.8,8.6892]
[1741409062000,13.25773521,140.85,140.8,1.587]
[1741409063621,7.1002,140.84,140.8,1.587]
[1741409068410,7.1002,140.84,140.8,0.033]
[1741409068612,13.25773521,140.81,140.8,0.033]
[1741409068851,13.25773521,140.83,140.8,0.033]
[1741409069347,13.25773521,140.82,140.8,0.033]
[1741409070448,20.35943521,140.81,140.8,0.033]
[1741409072138,7.1017,140.81,140.8,0.033]
[1741409072310,20.35943521,140.81,140.8,0.033]
[1741409072713,39.00908407,140.81,140.8,0.033]
[1741409072948,50.0,140.8,140.78,0.033]
[1741409073239,38.20738407,140.79,140.78,0.033]
[1741409073620,38.20738407,140.79,140.77,0.033]
[1741409073818,13.25773521,140.78,140.77,0.033]
[1741409074427,20.36093521,140.78,140.77,0.033]
[1741409077939,13.25773521,140.78,140.77,0.033]
[1741409078734,39.01058407,140.78,140.77,0.033]
[1741409080047,13.25773521,140.78,140.77,0.033]
[1741409082748,82.3,140.8,140.77,0.033]
[1741409082949,13.25773521,140.79,140.77,0.033]
[1741409083132,13.25773521,140.78,140.77,0.033]
[1741409088554,13.25773521,140.79,140.77,0.033]
[1741409089328,13.25773521,140.8,140.77,0.033]
[1741409091457,0.03,140.81,140.77,0.033]
[1741409091653,0.03,140.81,140.79,13.25773521]
[1741409091947,0.03,140.81,140.78,13.25773521]
[1741409092729,0.03,140.81,140.78,20.36063521]
[1741409094160,0.03,140.8,140.78,21.91773521]
[1741409097257,0.03,140.8,140.79,19.87353521]
[1741409099236,0.03,140.81,140.79,26.97623521]
[1741409099446,0.03,140.81,140.8,13.25773521]
[1741409100767,0.03,140.81,140.8,175.16668407]
[1741409101961,0.03,140.81,140.8,168.06448407]
[1741409102168,0.03,140.81,140.8,175.16668407]
[1741409102343,0.03,140.81,140.8,149.41483521]
[1741409105244,0.03,140.81,140.8,14.81483521]
[1741409106870,0.03,140.81,140.77,14.91473521]
[1741409107371,0.03,140.81,140.8,13.25773521]
[1741409108463,0.03,140.81,140.8,13.29073521]
[1741409108869,0.03,140.81,140.8,0.033]
[1741409112647,0.03,140.81,140.8,13.29073521]
[1741409115171,0.03,140.81,140.8,0.033]
[1741409119483,13.28773521,140.81,140.8,0.033]
[1741409120275,0.03,140.81,140.8,0.033]
[1741409123991,0.03,140.81,140.8,13.29073521]
[1741409124763,0.03,140.81,140.8,147.89073521]
[1741409125675,0.03,140.81,140.8,134.633]
[1741409125877,0.03,140.81,140.8,147.89073521]
[1741409126079,0.03,140.81,140.8,154.99293521]
[1741409128876,0.03,140.81,140.8,147.89073521]
[1741409129077,0.03,140.81,140.8,13.29073521]
[1741409129494,0.03,140.85,140.81,18.64964886]
[1741409129667,0.03,140.85,140.84,13.25773521]
[1741409129870,0.03,140.85,140.84,200.88867605]
[1741409130375,0.03,140.85,140.84,207.98887605]
[1741409131091,0.03,140.85,140.84,154.95793521]
[1741409132100,0.03,140.85,140.83,134.6]
[1741409132669,0.03,140.85,140.8,13.29073521]
[1741409132889,0.03,140.85,140.81,13.25773521]
[1741409133197,0.03,140.85,140.8,0.033]
[1741409133198,0.03,140.85,140.82,13.25773521]
[1741409133400,0.03,140.85,140.83,13.25773521]
[1741409133612,0.03,140.85,140.84,72.58867605]
[1741409133770,0.03,140.85,140.84,74.13257605]
[1741409134472,0.03,140.85,140.84,99.88242491]
[1741409135095,0.03,140.85,140.84,234.48242491]
[1741409135603,0.03,140.85,140.84,162.80183521]
[1741409136180,0.03,140.85,140.84,215.83277605]
[1741409136384,0.03,140.85,140.84,162.80183521]
[1741409137194,0.03,140.85,140.84,234.48242491]
[1741409138502,0.03,140.85,140.84,181.45148407]
[1741409139103,0.03,140.85,140.84,234.48242491]
[1741409140107,0.03,140.85,140.84,162.80183521]
[1741409140406,0.03,140.85,140.84,161.25793521]
[1741409141884,0.03,140.85,140.83,13.25773521]
[1741409142673,0.03,140.85,140.84,13.25773521]
[1741409143997,0.03,140.85,140.82,134.6]
[1741409144197,0.03,140.85,140.82,147.85773521]
[1741409144696,0.03,140.85,140.82,154.95893521]
[1741409146025,0.03,140.85,140.82,141.7012]
[1741409146199,0.03,140.85,140.81,7.1345]
[1741409146700,0.03,140.85,140.81,20.39223521]
[1741409147930,13.25773521,140.84,140.81,0.033]
[1741409148595,0.03,140.85,140.81,7.1346]
[1741409150411,0.03,140.85,140.82,13.25773521]